[Event "Titled Tuesday Blitz May 2 Late 2023"]
[White "Hakobyan, Aram"]
[Black "Principe, Gerson"]
[WhiteFideId "13306677"]
[BlackFideId "3804550"]
[WhiteElo "2584"]
[BlackElo "2229"]
[Result "1-0"]
[Round "01"]
[TimeControl "180+2"]
[Date "2023.05.02"]
[WhiteClock "0:00:01"]
[BlackClock "0:00:00"]

1. d4 {[%clk 0:00:01]}  Nf6 {[%clk 0:00:01]} 2. c4 {[%clk 0:00:01]}  e6 {[%clk 0:00:01]} 3. Nc3 {[%clk 0:00:01]}  Bb4 {[%clk 0:00:01]} 4. e3 {[%clk 0:00:01]}  O-O {[%clk 0:00:01]} 5. a3 {[%clk 0:00:01]}  Bxc3+ {[%clk 0:00:01]} 6. bxc3 {[%clk 0:00:01]}  c5 {[%clk 0:00:01]} 7. Ne2 {[%clk 0:00:01]}  Nc6 {[%clk 0:00:01]} 8. Ng3 {[%clk 0:00:01]}  b6 {[%clk 0:00:01]} 9. e4 {[%clk 0:00:01]}  d6 {[%clk 0:00:01]} 10. Ra2 {[%clk 0:00:01]}  Ba6 {[%clk 0:00:01]} 11. Bg5 {[%clk 0:00:01]}  h6 {[%clk 0:00:01]} 12. h4 {[%clk 0:00:01]}  Ne7 {[%clk 0:00:00]} 13. Bxf6 {[%clk 0:00:01]}  gxf6 {[%clk 0:00:00]} 14. Nh5 {[%clk 0:00:01]}  Ng6 {[%clk 0:00:00]} 15. Qf3 {[%clk 0:00:01]}  Rc8 {[%clk 0:00:00]} 16. Nxf6+ {[%clk 0:00:01]}  Kg7 {[%clk 0:00:00]} 17. Nh5+ {[%clk 0:00:01]}  Kh7 {[%clk 0:00:00]} 18. Rc2 {[%clk 0:00:01]}  e5 {[%clk 0:00:00]} 19. d5 {[%clk 0:00:01]}  Rc7 {[%clk 0:00:00]} 20. g3 {[%clk 0:00:01]}  Bc8 {[%clk 0:00:00]} 21. Bh3 {[%clk 0:00:01]}  Bxh3 {[%clk 0:00:00]} 22. Rxh3 {[%clk 0:00:01]}  f5 {[%clk 0:00:00]} 23. exf5 {[%clk 0:00:01]}  Ne7 {[%clk 0:00:00]} 1-0


[Site "https://www.chess.com"]

[Event "Titled Tuesday Blitz May 2 Late 2023"]
[White "Yeritsyan, Hayk"]
[Black "Kramnik, Vladimir"]
[WhiteFideId "13307320"]
[BlackFideId "4101588"]
[WhiteElo "2241"]
[BlackElo "2712"]
[Result "0-1"]
[Round "01"]
[TimeControl "180+2"]
[Date "2023.05.02"]
[WhiteClock "0:00:00"]
[BlackClock "0:00:00"]

1. d4 {[%clk 0:00:01]}  Nf6 {[%clk 0:00:01]} 2. Nf3 {[%clk 0:00:01]}  e6 {[%clk 0:00:01]} 3. e3 {[%clk 0:00:01]}  c5 {[%clk 0:00:01]} 4. Bd3 {[%clk 0:00:01]}  d5 {[%clk 0:00:01]} 5. c3 {[%clk 0:00:01]}  Nbd7 {[%clk 0:00:01]} 6. Nbd2 {[%clk 0:00:01]}  Be7 {[%clk 0:00:01]} 7. Qe2 {[%clk 0:00:01]}  b6 {[%clk 0:00:01]} 8. O-O {[%clk 0:00:01]}  Bb7 {[%clk 0:00:01]} 9. e4 {[%clk 0:00:01]}  dxe4 {[%clk 0:00:01]} 10. Nxe4 {[%clk 0:00:01]}  O-O {[%clk 0:00:01]} 11. dxc5 {[%clk 0:00:01]}  Nxe4 {[%clk 0:00:01]} 12. Bxe4 {[%clk 0:00:01]}  Bxe4 {[%clk 0:00:01]} 13. Qxe4 {[%clk 0:00:01]}  Nxc5 {[%clk 0:00:01]} 14. Qe2 {[%clk 0:00:01]}  Qd3 {[%clk 0:00:01]} 15. Qxd3 {[%clk 0:00:01]}  Nxd3 {[%clk 0:00:01]} 16. Rd1 {[%clk 0:00:01]}  Rfd8 {[%clk 0:00:01]} 17. Ne1 {[%clk 0:00:01]}  Ne5 {[%clk 0:00:01]} 18. Bf4 {[%clk 0:00:01]}  Nc4 {[%clk 0:00:01]} 19. b3 {[%clk 0:00:01]}  Na3 {[%clk 0:00:01]} 20. c4 {[%clk 0:00:00]}  Bf6 {[%clk 0:00:01]} 21. Rac1 {[%clk 0:00:00]}  Bb2 {[%clk 0:00:01]} 22. Kf1 {[%clk 0:00:00]}  Bxc1 {[%clk 0:00:01]} 23. Rxc1 {[%clk 0:00:00]}  Rac8 {[%clk 0:00:01]} 24. Ke2 {[%clk 0:00:00]}  e5 {[%clk 0:00:01]} 25. Be3 {[%clk 0:00:00]}  f5 {[%clk 0:00:01]} 26. Rd1 {[%clk 0:00:00]}  Rxd1 {[%clk 0:00:01]} 27. Kxd1 {[%clk 0:00:00]}  b5 {[%clk 0:00:01]} 28. c5 {[%clk 0:00:00]}  f4 {[%clk 0:00:00]} 29. Bd2 {[%clk 0:00:00]}  Nb1 {[%clk 0:00:00]} 30. Bb4 {[%clk 0:00:00]}  a5 {[%clk 0:00:00]} 31. Bxa5 {[%clk 0:00:00]}  Rxc5 {[%clk 0:00:00]} 32. Nd3 {[%clk 0:00:00]}  Rd5 {[%clk 0:00:00]} 33. Kc2 {[%clk 0:00:00]}  Na3+ {[%clk 0:00:00]} 34. Kc3 {[%clk 0:00:00]}  g5 {[%clk 0:00:00]} 35. Bb4 {[%clk 0:00:00]}  e4 {[%clk 0:00:00]} 36. Nb2 {[%clk 0:00:00]}  e3 {[%clk 0:00:00]} 37. fxe3 {[%clk 0:00:00]}  fxe3 {[%clk 0:00:00]} 38. Bxa3 {[%clk 0:00:00]}  e2 {[%clk 0:00:00]} 39. Nd3 {[%clk 0:00:00]}  Rxd3+ {[%clk 0:00:00]} 40. Kxd3 {[%clk 0:00:00]}  e1=Q {[%clk 0:00:00]} 0-1


[Site "https://www.chess.com"]

[Event "Titled Tuesday Blitz May 2 Late 2023"]
[White "Marczuk, Dominik"]
[Black "Yoo, Christopher Woojin"]
[WhiteFideId "1111264"]
[BlackFideId "30909694"]
[WhiteElo "2174"]
[BlackElo "2519"]
[Result "0-1"]
[Round "01"]
[TimeControl "180+2"]
[Date "2023.05.02"]
[WhiteClock "0:00:00"]
[BlackClock "0:00:00"]

1. e4 {[%clk 0:00:01]}  c5 {[%clk 0:00:01]} 2. Nf3 {[%clk 0:00:01]}  e6 {[%clk 0:00:01]} 3. d4 {[%clk 0:00:01]}  cxd4 {[%clk 0:00:01]} 4. Nxd4 {[%clk 0:00:01]}  Nc6 {[%clk 0:00:01]} 5. Nxc6 {[%clk 0:00:01]}  bxc6 {[%clk 0:00:01]} 6. Bd3 {[%clk 0:00:01]}  d5 {[%clk 0:00:01]} 7. O-O {[%clk 0:00:01]}  Nf6 {[%clk 0:00:01]} 8. Nc3 {[%clk 0:00:01]}  Be7 {[%clk 0:00:01]} 9. Qe2 {[%clk 0:00:01]}  O-O {[%clk 0:00:01]} 10. b3 {[%clk 0:00:01]}  Nd7 {[%clk 0:00:01]} 11. Bb2 {[%clk 0:00:01]}  Nc5 {[%clk 0:00:01]} 12. f4 {[%clk 0:00:01]}  Nxd3 {[%clk 0:00:01]} 13. Qxd3 {[%clk 0:00:01]}  Qb6+ {[%clk 0:00:01]} 14. Kh1 {[%clk 0:00:01]}  Ba6 {[%clk 0:00:01]} 15. Na4 {[%clk 0:00:01]}  Bxd3 {[%clk 0:00:01]} 16. Nxb6 {[%clk 0:00:01]}  Bxf1 {[%clk 0:00:01]} 17. Nxa8 {[%clk 0:00:01]}  Bxg2+ {[%clk 0:00:01]} 18. Kxg2 {[%clk 0:00:01]}  Rxa8 {[%clk 0:00:01]} 19. Kf3 {[%clk 0:00:01]}  Rd8 {[%clk 0:00:01]} 20. e5 {[%clk 0:00:01]}  f6 {[%clk 0:00:01]} 21. Rd1 {[%clk 0:00:01]}  Kf7 {[%clk 0:00:00]} 22. Bd4 {[%clk 0:00:01]}  c5 {[%clk 0:00:00]} 23. Bf2 {[%clk 0:00:01]}  fxe5 {[%clk 0:00:00]} 24. fxe5 {[%clk 0:00:01]}  g5 {[%clk 0:00:00]} 25. c4 {[%clk 0:00:01]}  Kg6 {[%clk 0:00:00]} 26. cxd5 {[%clk 0:00:00]}  exd5 {[%clk 0:00:00]} 27. b4 {[%clk 0:00:00]}  cxb4 {[%clk 0:00:00]} 28. Bxa7 {[%clk 0:00:00]}  Ra8 {[%clk 0:00:00]} 29. Be3 {[%clk 0:00:00]}  Rxa2 {[%clk 0:00:00]} 30. Rxd5 {[%clk 0:00:00]}  b3 {[%clk 0:00:00]} 31. Rb5 {[%clk 0:00:00]}  Rxh2 {[%clk 0:00:00]} 32. Rxb3 {[%clk 0:00:00]}  Kf5 {[%clk 0:00:00]} 33. Rb7 {[%clk 0:00:00]}  g4+ {[%clk 0:00:00]} 34. Kg3 {[%clk 0:00:00]}  Rh3+ {[%clk 0:00:00]} 35. Kf2 {[%clk 0:00:00]}  Bh4+ {[%clk 0:00:00]} 36. Ke2 {[%clk 0:00:00]}  h5 {[%clk 0:00:00]} 37. Rb5 {[%clk 0:00:00]}  Bg3 {[%clk 0:00:00]} 38. Bd4 {[%clk 0:00:00]}  Bf4 {[%clk 0:00:00]} 39. Rb6 {[%clk 0:00:00]}  Ke4 {[%clk 0:00:00]} 40. Bg1 {[%clk 0:00:00]}  Bxe5 {[%clk 0:00:00]} 41. Rb4+ {[%clk 0:00:00]}  Kf5 {[%clk 0:00:00]} 42. Rb5 {[%clk 0:00:00]}  Ke6 {[%clk 0:00:00]} 43. Rb6+ {[%clk 0:00:00]}  Kf7 {[%clk 0:00:00]} 44. Rb5 {[%clk 0:00:00]}  Bf6 {[%clk 0:00:00]} 45. Be3 {[%clk 0:00:00]}  h4 {[%clk 0:00:00]} 46. Bf4 {[%clk 0:00:00]}  Rf3 {[%clk 0:00:00]} 47. Bg5 {[%clk 0:00:00]}  h3 {[%clk 0:00:00]} 48. Bxf6 {[%clk 0:00:00]}  h2 {[%clk 0:00:00]} 49. Rh5 {[%clk 0:00:00]}  Rh3 {[%clk 0:00:00]} 50. Rf5 {[%clk 0:00:00]}  h1=Q {[%clk 0:00:00]} 51. Bd4+ {[%clk 0:00:00]}  Ke6 {[%clk 0:00:00]} 52. Re5+ {[%clk 0:00:00]}  Kd6 {[%clk 0:00:00]} 0-1


[Site "https://www.chess.com"]

[Event "Titled Tuesday Blitz May 2 Late 2023"]
[White "Kovalevsky, Stanislav"]
[Black "Kamsky, Gata"]
[WhiteFideId "13508598"]
[BlackFideId "2000024"]
[WhiteElo "2174"]
[BlackElo "2660"]
[Result "0-1"]
[Round "01"]
[TimeControl "180+2"]
[Date "2023.05.02"]
[WhiteClock "0:00:01"]
[BlackClock "0:00:01"]

1. c4 {[%clk 0:00:01]}  e5 {[%clk 0:00:01]} 2. Nc3 {[%clk 0:00:01]}  Nc6 {[%clk 0:00:01]} 3. g3 {[%clk 0:00:01]}  Bc5 {[%clk 0:00:01]} 4. Bg2 {[%clk 0:00:01]}  a6 {[%clk 0:00:01]} 5. e3 {[%clk 0:00:01]}  d6 {[%clk 0:00:01]} 6. Nge2 {[%clk 0:00:01]}  Ba7 {[%clk 0:00:01]} 7. O-O {[%clk 0:00:01]}  Nge7 {[%clk 0:00:01]} 8. f4 {[%clk 0:00:01]}  O-O {[%clk 0:00:01]} 9. d4 {[%clk 0:00:01]}  exd4 {[%clk 0:00:01]} 10. exd4 {[%clk 0:00:01]}  Nf5 {[%clk 0:00:01]} 11. Kh1 {[%clk 0:00:01]}  Ncxd4 {[%clk 0:00:01]} 12. Qd3 {[%clk 0:00:01]}  Nxe2 {[%clk 0:00:01]} 13. Nxe2 {[%clk 0:00:01]}  Re8 {[%clk 0:00:01]} 14. Be4 {[%clk 0:00:01]}  Bd7 {[%clk 0:00:01]} 15. Nc3 {[%clk 0:00:01]}  g6 {[%clk 0:00:01]} 16. b3 {[%clk 0:00:01]}  Qf6 {[%clk 0:00:01]} 17. Bb2 {[%clk 0:00:01]}  Rxe4 {[%clk 0:00:01]} 0-1


[Site "https://www.chess.com"]

[Event "Titled Tuesday Blitz May 2 Late 2023"]
[White "Przybylski, Wojciech"]
[Black "Livaic, Leon"]
[WhiteFideId "1117599"]
[BlackFideId "14531534"]
[WhiteElo "2222"]
[BlackElo "2509"]
[Result "0-1"]
[Round "01"]
[TimeControl "180+2"]
[Date "2023.05.02"]
[WhiteClock "0:00:00"]
[BlackClock "0:00:00"]

1. e4 {[%clk 0:00:01]}  c5 {[%clk 0:00:01]} 2. Nf3 {[%clk 0:00:01]}  e6 {[%clk 0:00:01]} 3. b3 {[%clk 0:00:01]}  b6 {[%clk 0:00:01]} 4. Bb2 {[%clk 0:00:01]}  Bb7 {[%clk 0:00:01]} 5. Qe2 {[%clk 0:00:01]}  d6 {[%clk 0:00:01]} 6. d4 {[%clk 0:00:01]}  cxd4 {[%clk 0:00:01]} 7. Nxd4 {[%clk 0:00:01]}  Nf6 {[%clk 0:00:01]} 8. Nd2 {[%clk 0:00:01]}  Be7 {[%clk 0:00:01]} 9. O-O-O {[%clk 0:00:01]}  a6 {[%clk 0:00:01]} 10. g4 {[%clk 0:00:01]}  Qc7 {[%clk 0:00:01]} 11. Bg2 {[%clk 0:00:01]}  Nc6 {[%clk 0:00:01]} 12. Kb1 {[%clk 0:00:01]}  Nxd4 {[%clk 0:00:01]} 13. Bxd4 {[%clk 0:00:01]}  e5 {[%clk 0:00:01]} 14. Bb2 {[%clk 0:00:01]}  b5 {[%clk 0:00:01]} 15. g5 {[%clk 0:00:01]}  Nd7 {[%clk 0:00:01]} 16. h4 {[%clk 0:00:00]}  Nc5 {[%clk 0:00:01]} 17. Nf1 {[%clk 0:00:00]}  Ne6 {[%clk 0:00:01]} 18. Qd2 {[%clk 0:00:00]}  Nf4 {[%clk 0:00:01]} 19. Bf3 {[%clk 0:00:00]}  O-O-O {[%clk 0:00:00]} 20. Ne3 {[%clk 0:00:00]}  Kb8 {[%clk 0:00:00]} 21. Bc3 {[%clk 0:00:00]}  Rc8 {[%clk 0:00:00]} 22. Ba5 {[%clk 0:00:00]}  Qc6 {[%clk 0:00:00]} 23. Nf5 {[%clk 0:00:00]}  Bd8 {[%clk 0:00:00]} 24. Bxd8 {[%clk 0:00:00]}  Rcxd8 {[%clk 0:00:00]} 25. Nxg7 {[%clk 0:00:00]}  d5 {[%clk 0:00:00]} 26. h5 {[%clk 0:00:00]}  dxe4 {[%clk 0:00:00]} 27. Qxd8+ {[%clk 0:00:00]}  Rxd8 {[%clk 0:00:00]} 28. Rxd8+ {[%clk 0:00:00]}  Ka7 {[%clk 0:00:00]} 29. Bg4 {[%clk 0:00:00]}  e3 {[%clk 0:00:00]} 30. Rhd1 {[%clk 0:00:00]}  exf2 {[%clk 0:00:00]} 31. Rf1 {[%clk 0:00:00]}  Qg2 {[%clk 0:00:00]} 32. Rxf2 {[%clk 0:00:00]}  Qxf2 {[%clk 0:00:00]} 33. Rd7 {[%clk 0:00:00]}  Qg1+ {[%clk 0:00:00]} 34. Kb2 {[%clk 0:00:00]}  Qxg4 {[%clk 0:00:00]} 35. Rxf7 {[%clk 0:00:00]}  Qxg5 {[%clk 0:00:00]} 0-1


[Site "https://www.chess.com"]

[Event "Titled Tuesday Blitz May 2 Late 2023"]
[White "Perez Ponsa, Federico"]
[Black "Haszon, David"]
[WhiteFideId "117927"]
[BlackFideId "733610"]
[WhiteElo "2590"]
[BlackElo "2210"]
[Result "1-0"]
[Round "01"]
[TimeControl "180+2"]
[Date "2023.05.02"]
[WhiteClock "0:00:00"]
[BlackClock "0:00:00"]

1. e4 {[%clk 0:00:01]}  c5 {[%clk 0:00:01]} 2. Nf3 {[%clk 0:00:01]}  e6 {[%clk 0:00:01]} 3. g3 {[%clk 0:00:01]}  g6 {[%clk 0:00:01]} 4. d4 {[%clk 0:00:01]}  Bg7 {[%clk 0:00:01]} 5. dxc5 {[%clk 0:00:01]}  Na6 {[%clk 0:00:01]} 6. Na3 {[%clk 0:00:01]}  Nxc5 {[%clk 0:00:01]} 7. e5 {[%clk 0:00:01]}  f6 {[%clk 0:00:01]} 8. Be3 {[%clk 0:00:01]}  b6 {[%clk 0:00:01]} 9. Nc4 {[%clk 0:00:01]}  Nb7 {[%clk 0:00:00]} 10. Bg2 {[%clk 0:00:01]}  b5 {[%clk 0:00:00]} 11. exf6 {[%clk 0:00:01]}  Nxf6 {[%clk 0:00:00]} 12. Nce5 {[%clk 0:00:01]}  O-O {[%clk 0:00:00]} 13. O-O {[%clk 0:00:01]}  d5 {[%clk 0:00:00]} 14. Bd4 {[%clk 0:00:00]}  Nd6 {[%clk 0:00:00]} 15. c3 {[%clk 0:00:00]}  Nf5 {[%clk 0:00:00]} 16. Re1 {[%clk 0:00:00]}  a5 {[%clk 0:00:00]} 17. a4 {[%clk 0:00:00]}  bxa4 {[%clk 0:00:00]} 18. Qxa4 {[%clk 0:00:00]}  Ne4 {[%clk 0:00:00]} 19. Nc6 {[%clk 0:00:00]}  Qe8 {[%clk 0:00:00]} 20. Bxg7 {[%clk 0:00:00]}  Kxg7 {[%clk 0:00:00]} 21. Ncd4 {[%clk 0:00:00]}  Bd7 {[%clk 0:00:00]} 22. Qa3 {[%clk 0:00:00]}  Nxd4 {[%clk 0:00:00]} 23. cxd4 {[%clk 0:00:00]}  Qf7 {[%clk 0:00:00]} 24. Re2 {[%clk 0:00:00]}  Bb5 {[%clk 0:00:00]} 25. Rc2 {[%clk 0:00:00]}  Rfc8 {[%clk 0:00:00]} 26. Rac1 {[%clk 0:00:00]}  Rxc2 {[%clk 0:00:00]} 27. Rxc2 {[%clk 0:00:00]}  Qf8 {[%clk 0:00:00]} 28. Qe3 {[%clk 0:00:00]}  Rc8 {[%clk 0:00:00]} 29. Rxc8 {[%clk 0:00:00]}  Qxc8 {[%clk 0:00:00]} 30. Ne5 {[%clk 0:00:00]}  Qc2 {[%clk 0:00:00]} 31. h4 {[%clk 0:00:00]}  Qd2 {[%clk 0:00:00]} 32. Bxe4 {[%clk 0:00:00]}  Qxe3 {[%clk 0:00:00]} 33. fxe3 {[%clk 0:00:00]}  dxe4 {[%clk 0:00:00]} 34. Kf2 {[%clk 0:00:00]}  Kf6 {[%clk 0:00:00]} 35. g4 {[%clk 0:00:00]}  h5 {[%clk 0:00:00]} 36. g5+ {[%clk 0:00:00]}  Kf5 {[%clk 0:00:00]} 37. Kg3 {[%clk 0:00:00]}  Be2 {[%clk 0:00:00]} 38. Nc6 {[%clk 0:00:00]}  e5 {[%clk 0:00:00]} 39. d5 {[%clk 0:00:00]} 1-0


[Site "https://www.chess.com"]

[Event "Titled Tuesday Blitz May 2 Late 2023"]
[White "Jimenez Almeida, Luis David"]
[Black "Kosakowski, Jakub"]
[WhiteFideId "22242244"]
[BlackFideId "1185080"]
[WhiteElo "2245"]
[BlackElo "2488"]
[Result "0-1"]
[Round "01"]
[TimeControl "180+2"]
[Date "2023.05.02"]
[WhiteClock "0:00:00"]
[BlackClock "0:00:00"]

1. e4 {[%clk 0:00:01]}  c5 {[%clk 0:00:01]} 2. Nc3 {[%clk 0:00:01]}  e6 {[%clk 0:00:01]} 3. g3 {[%clk 0:00:01]}  Nc6 {[%clk 0:00:01]} 4. Bg2 {[%clk 0:00:01]}  g6 {[%clk 0:00:01]} 5. Nge2 {[%clk 0:00:01]}  Bg7 {[%clk 0:00:01]} 6. d3 {[%clk 0:00:01]}  Nge7 {[%clk 0:00:01]} 7. Be3 {[%clk 0:00:01]}  Nd4 {[%clk 0:00:01]} 8. Qd2 {[%clk 0:00:01]}  d6 {[%clk 0:00:01]} 9. O-O {[%clk 0:00:01]}  O-O {[%clk 0:00:01]} 10. a4 {[%clk 0:00:01]}  Rb8 {[%clk 0:00:01]} 11. Nc1 {[%clk 0:00:01]}  Bd7 {[%clk 0:00:01]} 12. Nd1 {[%clk 0:00:01]}  a6 {[%clk 0:00:01]} 13. c3 {[%clk 0:00:01]}  Ndc6 {[%clk 0:00:01]} 14. Bh6 {[%clk 0:00:01]}  b5 {[%clk 0:00:01]} 15. axb5 {[%clk 0:00:01]}  axb5 {[%clk 0:00:01]} 16. Bxg7 {[%clk 0:00:01]}  Kxg7 {[%clk 0:00:01]} 17. Ne2 {[%clk 0:00:01]}  b4 {[%clk 0:00:01]} 18. Ne3 {[%clk 0:00:01]}  Qc7 {[%clk 0:00:01]} 19. d4 {[%clk 0:00:01]}  bxc3 {[%clk 0:00:01]} 20. bxc3 {[%clk 0:00:01]}  Na5 {[%clk 0:00:01]} 21. Rab1 {[%clk 0:00:01]}  Bb5 {[%clk 0:00:01]} 22. Ng4 {[%clk 0:00:01]}  Ng8 {[%clk 0:00:01]} 23. Rfe1 {[%clk 0:00:01]}  h5 {[%clk 0:00:01]} 24. Ne3 {[%clk 0:00:01]}  Nf6 {[%clk 0:00:01]} 25. h3 {[%clk 0:00:01]}  Nc4 {[%clk 0:00:01]} 26. Nxc4 {[%clk 0:00:01]}  Bxc4 {[%clk 0:00:01]} 27. Nf4 {[%clk 0:00:00]}  Rfd8 {[%clk 0:00:01]} 28. Qe3 {[%clk 0:00:00]}  cxd4 {[%clk 0:00:00]} 29. cxd4 {[%clk 0:00:00]}  e5 {[%clk 0:00:00]} 30. Nd5 {[%clk 0:00:00]}  Bxd5 {[%clk 0:00:00]} 31. exd5 {[%clk 0:00:00]}  Rxb1 {[%clk 0:00:00]} 32. Rxb1 {[%clk 0:00:00]}  e4 {[%clk 0:00:00]} 33. g4 {[%clk 0:00:00]}  hxg4 {[%clk 0:00:00]} 34. hxg4 {[%clk 0:00:00]}  Re8 {[%clk 0:00:00]} 35. Rc1 {[%clk 0:00:00]}  Qd7 {[%clk 0:00:00]} 36. Qg5 {[%clk 0:00:00]}  Nxg4 {[%clk 0:00:00]} 37. Bh3 {[%clk 0:00:00]}  f5 {[%clk 0:00:00]} 38. Bxg4 {[%clk 0:00:00]}  fxg4 {[%clk 0:00:00]} 39. Kg2 {[%clk 0:00:00]}  Rh8 {[%clk 0:00:00]} 40. Rh1 {[%clk 0:00:00]}  Rxh1 {[%clk 0:00:00]} 41. Kxh1 {[%clk 0:00:00]}  Qf7 {[%clk 0:00:00]} 42. Qxg4 {[%clk 0:00:00]}  Qxd5 {[%clk 0:00:00]} 43. Qd7+ {[%clk 0:00:00]}  Kf6 {[%clk 0:00:00]} 44. Qd8+ {[%clk 0:00:00]}  Kf5 {[%clk 0:00:00]} 45. Qf8+ {[%clk 0:00:00]}  Kg4 {[%clk 0:00:00]} 46. Kg1 {[%clk 0:00:00]}  Qxd4 {[%clk 0:00:00]} 47. Qc8+ {[%clk 0:00:00]}  Kg5 {[%clk 0:00:00]} 48. Qd8+ {[%clk 0:00:00]}  Qf6 {[%clk 0:00:00]} 49. Qd7 {[%clk 0:00:00]}  Qe5 {[%clk 0:00:00]} 50. Qd8+ {[%clk 0:00:00]}  Kh5 {[%clk 0:00:00]} 51. Qf8 {[%clk 0:00:00]}  d5 {[%clk 0:00:00]} 52. Qg8 {[%clk 0:00:00]}  d4 {[%clk 0:00:00]} 53. Qh7+ {[%clk 0:00:00]}  Kg5 {[%clk 0:00:00]} 54. Qg8 {[%clk 0:00:00]}  d3 {[%clk 0:00:00]} 55. Kf1 {[%clk 0:00:00]}  Qd6 {[%clk 0:00:00]} 56. Qb3 {[%clk 0:00:00]}  Qc5 {[%clk 0:00:00]} 57. Qd1 {[%clk 0:00:00]}  Qc2 {[%clk 0:00:00]} 58. Qe1 {[%clk 0:00:00]}  Qe2+ {[%clk 0:00:00]} 59. Qxe2 {[%clk 0:00:00]}  dxe2+ {[%clk 0:00:00]} 60. Kxe2 {[%clk 0:00:00]}  Kf4 {[%clk 0:00:00]} 61. Kf1 {[%clk 0:00:00]}  Kf3 {[%clk 0:00:00]} 62. Kg1 {[%clk 0:00:00]}  e3 {[%clk 0:00:00]} 63. fxe3 {[%clk 0:00:00]}  Kxe3 {[%clk 0:00:00]} 64. Kg2 {[%clk 0:00:00]}  Kf4 {[%clk 0:00:00]} 65. Kh3 {[%clk 0:00:00]}  g5 {[%clk 0:00:00]} 66. Kg2 {[%clk 0:00:00]}  Kg4 {[%clk 0:00:00]} 67. Kh2 {[%clk 0:00:00]}  Kf3 {[%clk 0:00:00]} 68. Kg1 {[%clk 0:00:00]}  Kg3 {[%clk 0:00:00]} 69. Kh1 {[%clk 0:00:00]}  Kf2 {[%clk 0:00:00]} 70. Kh2 {[%clk 0:00:00]}  g4 {[%clk 0:00:00]} 71. Kh1 {[%clk 0:00:00]}  Kg3 {[%clk 0:00:00]} 72. Kg1 {[%clk 0:00:00]}  Kh3 {[%clk 0:00:00]} 73. Kh1 {[%clk 0:00:00]}  g3 {[%clk 0:00:00]} 74. Kg1 {[%clk 0:00:00]}  g2 {[%clk 0:00:00]} 75. Kf2 {[%clk 0:00:00]}  Kh2 {[%clk 0:00:00]} 76. Kf3 {[%clk 0:00:00]}  g1=Q {[%clk 0:00:00]} 0-1


[Site "https://www.chess.com"]

[Event "Titled Tuesday Blitz May 2 Late 2023"]
[White "Grigorov, Grigor"]
[Black "Seletsky, Grigory"]
[WhiteFideId "2907313"]
[BlackFideId "14112191"]
[WhiteElo "2510"]
[BlackElo "2490"]
[Result "1-0"]
[Round "01"]
[TimeControl "180+2"]
[Date "2023.05.02"]
[WhiteClock "0:00:00"]
[BlackClock "0:00:00"]

1. d4 {[%clk 0:00:01]}  c5 {[%clk 0:00:01]} 2. d5 {[%clk 0:00:01]}  e6 {[%clk 0:00:01]} 3. Nc3 {[%clk 0:00:01]}  exd5 {[%clk 0:00:01]} 4. Nxd5 {[%clk 0:00:01]}  d6 {[%clk 0:00:01]} 5. e4 {[%clk 0:00:01]}  Nc6 {[%clk 0:00:01]} 6. Nf3 {[%clk 0:00:01]}  h6 {[%clk 0:00:01]} 7. Bf4 {[%clk 0:00:01]}  Nf6 {[%clk 0:00:01]} 8. Bc4 {[%clk 0:00:01]}  Nxd5 {[%clk 0:00:01]} 9. Bxd5 {[%clk 0:00:01]}  Be7 {[%clk 0:00:01]} 10. O-O {[%clk 0:00:01]}  O-O {[%clk 0:00:01]} 11. c3 {[%clk 0:00:01]}  Bg4 {[%clk 0:00:01]} 12. Qd3 {[%clk 0:00:01]}  Bxf3 {[%clk 0:00:01]} 13. Qxf3 {[%clk 0:00:01]}  Ne5 {[%clk 0:00:01]} 14. Qg3 {[%clk 0:00:01]}  Bh4 {[%clk 0:00:01]} 15. Qh3 {[%clk 0:00:01]}  Bg5 {[%clk 0:00:01]} 16. Bg3 {[%clk 0:00:01]}  Bf6 {[%clk 0:00:01]} 17. Rad1 {[%clk 0:00:01]}  Qb6 {[%clk 0:00:01]} 18. f4 {[%clk 0:00:01]}  Ng6 {[%clk 0:00:01]} 19. Rd2 {[%clk 0:00:01]}  Rad8 {[%clk 0:00:00]} 20. Bc4 {[%clk 0:00:00]}  Qc6 {[%clk 0:00:00]} 21. Bd5 {[%clk 0:00:00]}  Qd7 {[%clk 0:00:00]} 22. Qh5 {[%clk 0:00:00]}  Kh7 {[%clk 0:00:00]} 23. Rfd1 {[%clk 0:00:00]}  Qe7 {[%clk 0:00:00]} 24. Qf5 {[%clk 0:00:00]}  Kh8 {[%clk 0:00:00]} 25. Bf2 {[%clk 0:00:00]}  b6 {[%clk 0:00:00]} 26. g3 {[%clk 0:00:00]}  Qe8 {[%clk 0:00:00]} 27. Qh5 {[%clk 0:00:00]}  Ne7 {[%clk 0:00:00]} 28. Bb3 {[%clk 0:00:00]}  Ng6 {[%clk 0:00:00]} 29. Bc2 {[%clk 0:00:00]}  Qe7 {[%clk 0:00:00]} 30. Qf5 {[%clk 0:00:00]}  Rfe8 {[%clk 0:00:00]} 31. h4 {[%clk 0:00:00]}  Nf8 {[%clk 0:00:00]} 32. h5 {[%clk 0:00:00]}  Qe6 {[%clk 0:00:00]} 33. Qxe6 {[%clk 0:00:00]}  Rxe6 {[%clk 0:00:00]} 34. e5 {[%clk 0:00:00]}  Be7 {[%clk 0:00:00]} 35. Bf5 {[%clk 0:00:00]}  g6 {[%clk 0:00:00]} 36. Bxe6 {[%clk 0:00:00]}  Nxe6 {[%clk 0:00:00]} 37. hxg6 {[%clk 0:00:00]}  fxg6 {[%clk 0:00:00]} 38. exd6 {[%clk 0:00:00]}  Bf6 {[%clk 0:00:00]} 39. Re2 {[%clk 0:00:00]}  Nf8 {[%clk 0:00:00]} 40. b4 {[%clk 0:00:00]}  cxb4 {[%clk 0:00:00]} 41. cxb4 {[%clk 0:00:00]}  Kg7 {[%clk 0:00:00]} 42. b5 {[%clk 0:00:00]}  Rd7 {[%clk 0:00:00]} 43. Rc2 {[%clk 0:00:00]}  Kf7 {[%clk 0:00:00]} 44. Rc7 {[%clk 0:00:00]}  h5 {[%clk 0:00:00]} 45. Rxd7+ {[%clk 0:00:00]}  Nxd7 {[%clk 0:00:00]} 46. Bd4 {[%clk 0:00:00]}  Bd8 {[%clk 0:00:00]} 47. Re1 {[%clk 0:00:00]}  Bf6 {[%clk 0:00:00]} 48. Bxf6 {[%clk 0:00:00]}  Kxf6 {[%clk 0:00:00]} 49. Re7 {[%clk 0:00:00]}  Nf8 {[%clk 0:00:00]} 50. Rxa7 {[%clk 0:00:00]}  Ke6 {[%clk 0:00:00]} 51. Rb7 {[%clk 0:00:00]}  Nd7 {[%clk 0:00:00]} 52. a4 {[%clk 0:00:00]}  Kxd6 {[%clk 0:00:00]} 53. Kg2 {[%clk 0:00:00]}  Ke6 {[%clk 0:00:00]} 54. Rc7 {[%clk 0:00:00]}  Kd6 {[%clk 0:00:00]} 55. Rc6+ {[%clk 0:00:00]}  Kd5 {[%clk 0:00:00]} 56. Rxg6 {[%clk 0:00:00]}  Nc5 {[%clk 0:00:00]} 57. Rxb6 {[%clk 0:00:00]}  Nxa4 {[%clk 0:00:00]} 58. Rh6 {[%clk 0:00:00]}  Nc3 {[%clk 0:00:00]} 59. Rxh5+ {[%clk 0:00:00]}  Kd6 {[%clk 0:00:00]} 60. Kf3 {[%clk 0:00:00]}  Na4 {[%clk 0:00:00]} 61. Re5 {[%clk 0:00:00]}  Nb6 {[%clk 0:00:00]} 62. g4 {[%clk 0:00:00]}  Nc4 {[%clk 0:00:00]} 63. Ke4 {[%clk 0:00:00]}  Nd2+ {[%clk 0:00:00]} 64. Kd3 {[%clk 0:00:00]}  Nb3 {[%clk 0:00:00]} 65. g5 {[%clk 0:00:00]}  Na5 {[%clk 0:00:00]} 66. g6 {[%clk 0:00:00]}  Nb7 {[%clk 0:00:00]} 67. g7 {[%clk 0:00:00]} 1-0


[Site "https://www.chess.com"]